Cogmind - Beta 16 @@@ ROGUE MODE // 2025.10.25 @ 21:36:07 Player: BlobtheGreat Result: Destroyed by as-95466 with Assembled Blade Performance ------------- Evolutions (0) 0 Regions Visited (2) 400 Robots Destroyed (29) 145 Value Destroyed (533) 533 Prototype IDs (3) 60 Alien Tech Used (0) 0 Bonus (0) 0 TOTAL SCORE: 1138 Bonus ------- None Cogmind --------- Core Integrity 0/250 Matter 300/300 Energy 250/250 System Corruption 0% Temperature Warning (348) Movement Core (800) Ox15 Location -10/Mines Parts ------- > --- POWER (1) -------- Ion Engine > --- PROPULSION (2) --- (None) > --- UTILITY (2) ------ High-capacity Storage Unit > --- WEAPON (2) ------- Particle Gun > --- INVENTORY (20) --- Light Nuclear Core Aluminum Leg Aluminum Leg Compact Wheel Compact Wheel Huge Storage Unit Seismic Detector Light Armor Plating Light Armor Plating Light Armor Plating Light Armor Plating Light Armor Plating Peak State ------------ > --- POWER ------------ Ion Engine > --- PROPULSION ------- Light Treads Light Treads > --- UTILITY ---------- Heat Sink High-capacity Storage Unit > --- WEAPON ----------- Particle Gun Particle Gun > --- INVENTORY -------- Ion Engine Light Nuclear Core Light Treads Light Treads Aluminum Leg Aluminum Leg Compact Wheel Compact Wheel Seismic Detector Light Armor Plating [Rating: 10] Favorites ----------- Power Ion Engine Engine Ion Engine Propulsion Light Treads Treads Light Treads Utility Heat Sink Device Heat Sink Storage High-capacity Storage Unit Protection Light Armor Plating Weapon Particle Gun Energy Gun Particle Gun Ballistic Gun Assault Rifle Build | -11 -10 -10 ------- Run | Yrd Mat Min Slots Evolved . | . . . Power . | . . . Propulsion . | . . . Utility . | . . . Weapon . | . . . Parts Attached 16 | 7 9 . Power 2 | 1 1 . Engine 2 | 1 1 . Core . | . . . Reactor . | . . . Propulsion 4 | 2 2 . Treads 4 | 2 2 . Leg . | . . . Wheel . | . . . Hover . | . . . Flight . | . . . Utility 5 | 2 3 . Device 2 | 1 1 . Storage 2 | 1 1 . Processor . | . . . Hackware . | . . . Protection 1 | . 1 . Artifact . | . . . Weapon 5 | 2 3 . Energy Gun 4 | 1 3 . Energy Cannon . | . . . Ballistic Gun 1 | 1 . . Ballistic Cannon . | . . . Launcher . | . . . Special Weapon . | . . . Impact Weapon . | . . . Slashing Weapon . | . . . Piercing Weapon . | . . . Special Melee Weapon . | . . . Unidentified Prototypes . | . . . Parts Lost 10 | . 6 4 Power 1 | . 1 . Propulsion 4 | . 2 2 Utility 2 | . 1 1 Weapon 3 | . 2 1 Highest Loss Streak 5 | . 5 4 To Critical Strikes . | . . . Average Backups 8 | 5 9 12 Power 1 | . 1 1 Propulsion 4 | 3 4 4 Utility 2 | . 2 7 Weapon 1 | . 1 . Tool/Special . | . . . Unused Backups 12 | . 1 11 Power 1 | . . 1 Propulsion 4 | . . 4 Utility 6 | . . 6 Weapon 1 | . 1 . Tool/Special . | . . . Average Slot Usage (%) 98 | . 98 90 Engine 13 | . 13 14 Treads 27 | . 27 25 Device 13 | . 13 7 Storage 14 | . 14 14 Energy Gun 19 | . 19 23 Ballistic Gun 8 | . 8 . Peak Build Rating 10 | 7 10 10 Average Rating 8 | 6 9 8 On Entrance 5 | . 7 10 Avg Prop Armor Cover (%) . | . . . Naked Turns . | . . . Heaviest Build 54 | 15 54 54 Greatest Support 40 | 40 40 40 Greatest Overweight (x) 2 | . 1 2 Average Overweight (x) . | . . 1 Largest Inventory Capacity 20 | 8 20 20 Average Capacity 15 | 7 17 20 Most Carried 12 | 7 12 12 Average Carried 8 | 5 9 12 Final Capacity 20 | 8 20 20 Final Carried 12 | 7 12 12 Class Distribution -------------------- 100% | Mutant Dominant Class ---------------- Mutant | -10/Materials Mutant | -10/Mines Resources | -11 -10 -10 ----------- Run | Yrd Mat Min Matter Collected 558 | 343 215 . Remotely . | . . . Salvage Created 930 | 274 627 29 Parts 68 | 35 33 . Haulers Intercepted 1 | . 1 . Recyclers Shooed . | . . . Parts Field Recycled . | . . . Retrieved Matter . | . . . Parts Self-Destructed . | . . . Prevented . | . . . Parts Restored . | . . . Kills | -11 -10 -10 ------- Run | Yrd Mat Min Combat Hostiles Destroyed 14 | . 12 2 Guns 14 | . 12 2 Classes Destroyed 7 | 3 3 1 Worker 4 | 3 1 . Builder 1 | . 1 . Tunneler 9 | 9 . . Hauler 1 | . 1 . Recycler 2 | 1 1 . Grunt 12 | . 12 . Assembled 2 | . . 2 Best Kill Streak 5 | 4 5 2 Combat Bots Only 4 | . 4 2 Max Kills in Single Turn 2 | 2 2 1 Gunslinging . | . . . Exploded . | . . . Melee . | . . . Uniques/NPCs Destroyed . | . . . Combat | -11 -10 -10 -------- Run | Yrd Mat Min Hostile Shots Fired 126 | . 102 24 Missed 30 | . 24 6 Hits 96 | . 78 18 Melee 8 | . . 8 Projectile 88 | . 78 10 Critical Strikes 3 | . 1 2 Part Disruptions 2 | . . 2 Damage Taken 1327 | . 952 375 Core 250 | . 158 92 Absorbed by Shields . | . . . Core Remaining (%) 100 | 100 . . Volleys Fired 97 | 26 59 12 Largest 2 | 2 2 2 Hottest 130 | 70 130 130 Shots Fired 185 | 52 117 16 Gun 185 | 52 117 16 Cannon . | . . . Launcher . | . . . Special . | . . . Kinetic 74 | 26 48 . Thermal 111 | 26 69 16 Explosive . | . . . Electromagnetic . | . . . Robot Hit Streak 14 | 4 14 7 Robot Miss Streak 5 | 4 5 5 Penetration Max . | . . . Secondary Targets . | . . . Shots Hit Robots 112 | 27 79 6 Core Hits 43 | 14 25 4 Critical Kills . | . . . Critical Parts Destroyed . | . . . Critical Strikes 3 | . 3 . Burn 3 | . 3 . Melee Attacks . | . . . Impact . | . . . Slashing . | . . . Piercing . | . . . Sneak Attacks . | . . . Combat Hostiles . | . . . Follow-up Attacks . | . . . Damage Inflicted 1693 | 379 1219 95 Guns 1686 | 379 1212 95 Cannons . | . . . Explosions . | . . . Melee . | . . . Ramming 7 | . 7 . Kinetic 582 | 189 393 . Thermal 1104 | 190 819 95 Explosive . | . . . Electromagnetic . | . . . Impact . | . . . Slashing . | . . . Piercing . | . . . Highest Corruption . | . . . Average Corruption . | . . . Corruption Purged . | . . . Corruption Blocked . | . . . Overload Shots . | . . . Overflow Damage . | . . . Projectiles . | . . . Explosions . | . . . Melee . | . . . Knockbacks . | . . . Impact . | . . . Kinetic . | . . . Secondary . | . . . Self-Inflicted Damage . | . . . Shots . | . . . Rammed 4 | 1 3 . Targets Rammed 4 | 1 3 . Kicked . | . . . Crushed . | . . . Highest Temperature 348 | 36 342 348 Average Temperature 97 | 12 113 210 Received Heat Transfer 632 | . 552 80 Siege Activations . | . . . Martial Activations . | . . . Shielding Activations . | . . . Robots Disrupted . | . . . Combat Hostiles . | . . . Robots Corrupted . | . . . Combat Hostiles . | . . . Parts Fried . | . . . Impact Corruptions . | . . . Robots Melted . | . . . Combat Hostiles . | . . . Parts Melted 6 | . 6 . Heat Transferred 2923 | 555 2146 222 Parts Sabotaged . | . . . Parts Stolen . | . . . Parts Stripped . | . . . Power Chain Reactions . | . . . Alert | -11 -10 -10 ------- Run | Yrd Mat Min Maximum Alert Level . | . . . Low Security (%) 100 | 100 100 100 Level 1 . | . . . Level 2 . | . . . Level 3 . | . . . Level 4 . | . . . Level 5 . | . . . High Security . | . . . Max Security . | . . . Peak Influence 89 | 20 89 5 Initial 5 | . . 5 Average 18 | 2 24 1 Influence Increases 460 | 65 395 . Destroy 0b10 Robot/C 240 | . 240 . Destroy 0b10 Robot/NC 85 | 65 20 . Destroy Leader 42 | . 42 . Successful Hack 45 | . 45 . Select Force Hacks 30 | . 30 . Destroy Structure 3 | . 3 . Lose Combat Pursuer 15 | . 15 . Influence Decreases 460 | 65 381 14 Entered New Map 9 | . . 9 Time Decay 431 | 65 361 5 Lost Part 20 | . 20 . Squads Dispatched 2 | . 2 . Investigation 2 | . 2 . Extermination . | . . . Reinforcement . | . . . Assault . | . . . Garrison . | . . . Intercept . | . . . Searches Triggered . | . . . Construction Impeded . | . . . Haulers Reinforced . | . . . Active Scanning Responses . | . . . Cargo Convoy Interrupts . | . . . Stealth | -11 -10 -10 --------- Run | Yrd Mat Min Distress Signals 1 | . 1 . Communications Jammed . | . . . Distress Signals . | . . . Times Spotted 50 | . 27 23 Peak Tracking Total 20 | . 4 20 Tactical Retreats 2 | . 1 1 Traps | -11 -10 -10 ------- Run | Yrd Mat Min Traps Triggered 1 | . 1 . Indirectly . | . . . Trap Hack Attempts . | . . . Triggered . | . . . Disarmed . | . . . Reprogrammed . | . . . Reused . | . . . Traps Extracted . | . . . Installed . | . . . Triggered . | . . . Machines | -11 -10 -10 ---------- Run | Yrd Mat Min Machines Disabled . | . . . Max in Single Turn . | . . . Machines Repaired . | . . . Machines Dismantled . | . . . Machines Sabotaged . | . . . Overloaded Fab Kills . | . . . Hacking | -11 -10 -10 --------- Run | Yrd Mat Min Machines Accessed 6 | . 6 . Terminals 5 | . 5 . Fabricators . | . . . Repair Stations . | . . . Recycling Units 1 | . 1 . Scanalyzers . | . . . Garrison Access . | . . . Total Hacks 19 | . 19 . Successful 11 | . 11 . Failed 8 | . 8 . Catastrophic . | . . . Database Lockouts . | . . . Manual 16 | . 16 . Terminals 18 | . 18 . Fabricators . | . . . Repair Stations . | . . . Recycling Units 1 | . 1 . Scanalyzers . | . . . Garrison Access . | . . . Terminal Hacks 4 | . 4 . Record 1 | . 1 . Robot Analysis 2 | . 2 . Prototype ID Bank 1 | . 1 . Fabricator Hacks . | . . . Repair Station Hacks . | . . . Recycling Unit Hacks . | . . . Scanalyzer . | . . . Garrison Access Hacks . | . . . Unauthorized Hacks 7 | . 7 . Terminals 6 | . 6 . Botnet 1 | . 1 . Skim 5 | . 5 . Fabricators . | . . . Repair Stations . | . . . Recycling Units 1 | . 1 . Tunnel 1 | . 1 . Scanalyzers . | . . . Garrison Access . | . . . Data Cores Recovered . | . . . Used . | . . . Hacking Detections 5 | . 5 . Full Trace Events . | . . . Feedback Events . | . . . Feedback Blocked . | . . . Robot Schematics Acquired . | . . . Robots Built . | . . . Authchips . | . . . Time . | . . . Total Robot Build Rating . | . . . Part Schematics Acquired . | . . . Parts Built . | . . . Authchips . | . . . Time . | . . . Total Part Build Rating . | . . . Part Studies Acquired . | . . . Parts Repaired . | . . . Time . | . . . Parts Recycled . | . . . Recycled Matter . | . . . Retrieved Matter . | . . . Retrieved Components . | . . . Parts Scanalyzed . | . . . Part Schematics Acquired . | . . . Parts Damaged . | . . . Bothacking | -11 -10 -10 ------------ Run | Yrd Mat Min Used RIF Installer . | . . . Robots Hacked . | . . . Non-combat . | . . . Combat . | . . . Robot Hacks Applied . | . . . Relay Couplers Released . | . . . Fabnet Peak Effective % . | . . . Robots Rewired . | . . . Allies Hacked . | . . . Hacks Repelled . | . . . Allies | -11 -10 -10 -------- Run | Yrd Mat Min Total Allies . | . . . Largest Group . | . . . Highest-Rated Group . | . . . Highest-Rated Ally . | . . . Total Orders . | . . . Ally Attacks . | . . . Total Damage . | . . . Kills . | . . . Allies Corrupted . | . . . Allies Melted . | . . . Intel | -11 -10 -10 ------- Run | Yrd Mat Min Active Infowar (turns) 497 | 276 221 . Seismic 497 | 276 221 . Robot Analysis Total 2 | . 2 . Derelict Logs Recovered . | . . . Drone Launches . | . . . Drone Recoveries . | . . . Exploration | -11 -10 -10 ------------- Run | Yrd Mat Min Turns Passed 1755 | 395 1311 49 Spaces Moved 681 | 189 485 7 Core 3 | 3 . . Treads 678 | 186 485 7 Legs . | . . . Wheels . | . . . Hover . | . . . Flight . | . . . Fastest Speed 50 | 50 160 240 Average Speed 204 | 158 221 251 Slowest Speed 320 | 160 240 320 Overloaded Moves . | . . . Propulsion Burnouts . | . . . Robots Hopped . | . . . Potential Cave-ins . | . . . Cave-ins Triggered . | . . . Exploration Rate (%) 34 | 9 88 6 Regions Visited 2 Branch Regions 1 Pre-discovered Areas 2 | . 2 . Known Exits Taken 1 | . 1 . Unknown Exits Taken 1 | 1 . . Scrap Searched . | . . . Spaces Dug . | . . . Terrain Destroyed . | . . . Melee . | . . . Projectile . | . . . AOE . | . . . Terrain Rammed . | . . . Walls Destroyed . | . . . Machines Disabled . | . . . Actions | -11 -10 -10 --------- Run | Yrd Mat Min Total 854 | 229 604 21 Wait 34 | . 34 . Move 679 | 188 484 7 Hop . | . . . Pick Up 18 | 7 11 . Fast Attach 8 | 7 1 . Attach 5 | . 5 . Detach . | . . . Swap 6 | . 4 2 Drop 3 | . 3 . Fire 97 | 26 59 12 Melee . | . . . Ram . | . . . Kick . | . . . Crush 4 | 1 3 . Escape Stasis . | . . . Rewire . | . . . Trap . | . . . Miscellaneous . | . . . Route ------- -11/Scrapyard -10/Materials (discovered 6 exits: *Mat x3 / *Min x2 / *Sub) -10/Mines History --------- Turn | Location | Event 4 | -11/Scrapyard | Discovered new exit (range 16) 396 | -11/Scrapyard | Entered Materials 397 | -10/Materials | Build established: Mutant 863 | -10/Materials | Discovered new exit (range 8) 959 | -10/Materials | Discovered new exit (range 10) 1072 | -10/Materials | Discovered new exit (range 12) 1125 | -10/Materials | Learned location of 2 exits from Subcaves 1221 | -10/Materials | Core integrity fell below 50% 1242 | -10/Materials | Lost 5 parts (1p2n2w) 1251 | -10/Materials | Identified exit to Materials 1251 | -10/Materials | Identified exit to Mines 1339 | -10/Materials | Learned 4 Subcaves zone layouts 1369 | -10/Materials | Learned location of Mines (-8) 1410 | -10/Materials | Learned 8 Materials zone layouts 1461 | -10/Materials | Identified exit to Subcaves 1707 | -10/Materials | Entered Mines 1708 | -10/Mines | Assembled infested the area 1751 | -10/Mines | Core integrity fell below 20% 1756 | -10/Mines | Destroyed by as-95466 with Assembled Blade Last Messages --------------- 01500_ Acquired Lgt. Armor Plating. 01631_ Connecting with Recycling Unit... >>Force(Tunnel) DISCOVERED[-4/Hub_04(d)] 01631_ ALERT: Suspicious activity at Recycling Unit M002. Dispatching Investigation squad. 01636_ K-01 Serf cleans the Atomic Centrifuge. 01652_ Slammed into K-01 Serf. 01671_ K-01 Serf cleans the Matter Pump. LOCATION=MINES GOAL=ESCAPE 01708_ ALERT: Infestation in the mines, dispatching Demolisher response squad. 01721_ T-07 Excavator destroyed. 01737_ as-13254 destroyed. 01738_ Particle Gun destroyed. 01748_ Lgt. Treads destroyed. 01748_ Heat Sink destroyed. 01752_ as-23933 destroyed. 01754_ Lgt. Treads destroyed. Map ----- +----------------------------------------------------+ | ?????????????????????????????????????????????????? | | ?????????????????????????????????????????????????? | | ?????????????????????????????????????????????????? | | ?????????????????????????????????????????????????? | | ?????????????????????????????????????????????????? | | ?????????????????????????????????????????????????? | | ?????????????????????????????????????????????????? | | ?????????????????????????????????????????????????? | | ?????????????????????????????????????????????????? | | ?????????????????????????????????????????????????? | | ?????????????????????????????????????????????????? | | ?????????????????????????????????????????????????? | | ?????????????????????????????????????????????????? | | ?????????????????????????????????????????????????? | | ?????????????????????????????????????????????????? | | ?????????????????????????????????????????????????? | | ?????????????????????????????????????????????????? | | ?????????????????????????????????????????????????? | | ?????????????????????????????????????????????????? | | ?????????????????????????????????????????????????? | | ?????????????????????????????????????????????????? | | ?????????????????????????????????????????????????? | | ?????????????????????????????????????????????????? | | ?????????????????????????????????????????????????? | | ???????????????????# #######?????????????????????? | | ???????????????????# @ #?????????????????????? | | ???????????????????#######a#?????????????????????? | | ?????????????????????????#a#?????????????????????? | | ?????????????????????##### #?????????????????????? | | ????????????????????## *##????????????????????? | | ???????????????????## !% #????????????????????? | | ???????????????????# ! #????????????????????? | | ??????????????????# #????????????????????? | | ??????????????????# ##????????????????????? | | ??????????????????## ##?????????????????????? | | ???????????????????## ?????????????????????? | | ????????????????????# ????????????????????? | | ????????????????????# ###???????????????????? | | ????????????????????# #?????????????????????? | | ????????????????????# ### #?????????????????????? | | ????????????????????# ??? #?????????????????????? | | ????????????????????# ??? #?????????????????????? | | ???????????????????? ??? #?????????????????????? | | ???????????????????? ??? ?????????????????????? | | ???????????????????? ??? ?????????????????????? | | ???????????????????? ??????????????????????????? | | ???????????????????? ??????????????????????????? | | ?????????????????????????????????????????????????? | | ?????????????????????????????????????????????????? | | ?????????????????????????????????????????????????? | +----------------------------------------------------+ Best States ------------- Heat Dissipation 35 Energy Generation 10 Energy Capacity 250 Matter Stores 300 Matter Capacity 300 Sight Range 16 Terrain Scan Density 10 Armor Coverage 150 Evasion (%) 40 Recoil Reduction 2 Item Schematics ----------------- None Robot Schematics ------------------ None Fabricated ------------ Nothing Repaired ---------- Nothing Studied --------- None Alien Tech Used ----------------- None Achievements -------------- None Challenges ------------ None Game ------ Seed RecyclingSigixMagmablaster Manual? 0 Play Time 00:08:32 Cumulative 177.9 hours Start 2025.10.25 @ 21:26:36 End 2025.10.25 @ 21:36:07 Sessions 1 Manual Loads 0 Difficulty Rogue Special Mode None Game No. 159 Rogue 159 Adventurer 0 Explorer 0 Win Type - Total 6 Types 5/0/1/0/0/0/0/0/0/0 Lore% 79 Gallery% 69 Achievement% 52 Wizard Run 0 Options --------- Layout 1 ASCII 0 Keyboard 1 Movement Arrows Keybinds 0 Fullscreen 1 Font 24/Smallcaps Map View 50x40 Zoom Use 0% Tactical HUD 1 Map Filters NONE Filters NONE Steam 1 RUN: e4355315-0fa4-4725-b525-d81cdf416989